bitfinex/quotes_ETHUSD_20250517
["timestamp","ask_amount","ask_price","bid_price","bid_amount"]
[1747503897693,4.03665917,2477.3,2477.1,0.38292527]
[1747503897694,4.03671895,2477.3,2477.1,0.38292527]
[1747503898487,4.03681106,2477.3,2477.2,0.38292527]
[1747503900392,0.7805,2477.6,2477.2,0.38292527]
[1747503900691,4.03619999,2477.6,2477.3,0.55]
[1747503900994,4.03633009,2477.5,2477.3,0.55]
[1747503901192,4.03633009,2477.5,2477.4,0.38292527]
[1747503903517,4.03624658,2477.6,2477.4,0.38292527]
[1747503903673,0.7795,2478.0,2477.4,8.85482527]
[1747503903878,4.03618054,2477.6,2477.4,10.24633409]
[1747503904093,4.03632694,2477.5,2477.4,10.79633409]
[1747503904299,4.03632694,2477.5,2477.4,9.40482527]
[1747503904809,4.03632694,2477.5,2477.4,9.87847051]
[1747503905177,4.03632694,2477.5,2477.4,8.55957051]
[1747503906101,4.03632694,2477.5,2477.4,0.85657051]
[1747503907199,5.9884066,2477.5,2477.4,0.85657051]
[1747503907363,4.81598986,2477.4,2477.3,0.38292527]
[1747503907568,14.46406952,2477.4,2477.3,0.38292527]
[1747503908888,4.03681575,2477.2,2477.1,0.38292527]
[1747503909905,6.78189541,2477.2,2477.1,0.38292527]
[1747503911504,4.03730469,2476.9,2476.8,0.85657051]
[1747503911702,4.83030469,2476.9,2476.8,0.85657051]
[1747503911894,12.52630469,2476.9,2476.8,0.85657051]
[1747503913175,20.52630469,2476.9,2476.8,0.85657051]
[1747503913384,20.52630469,2476.9,2475.8,0.77012532]
[1747503913385,4.03828292,2476.3,2476.2,0.47364524]
[1747503913589,11.73428292,2476.3,2476.2,0.47364524]
[1747503913811,1.95207966,2476.6,2476.2,0.47364524]
[1747503913812,7.696,2476.6,2476.2,0.47364524]
[1747503914015,4.03828292,2476.3,2476.2,1.02364524]
[1747503914215,4.03828292,2476.3,2476.2,0.47364524]
[1747503914626,4.03828292,2476.3,2476.2,0.85617012]
[1747503915809,4.03828292,2476.3,2476.2,8.55417012]
[1747503915993,4.0374677,2476.8,2476.3,0.55]
[1747503916192,5.98909222,2477.1,2476.3,0.55]
[1747503916193,4.03780835,2476.6,2476.3,0.55]
[1747503916423,4.03779661,2476.6,2476.3,0.55]
[1747503916727,4.03811985,2476.4,2476.3,8.248]
[1747503917230,4.03811985,2476.4,2476.3,7.698]
[1747503917632,4.03811985,2476.4,2476.3,8.08052488]
[1747503918834,4.03763857,2476.7,2476.3,8.08052488]
[1747503918835,11.73470757,2476.7,2476.3,8.58280249]
[1747503919032,11.73470757,2476.7,2476.3,7.698]
[1747503919335,4.03779374,2476.6,2476.3,7.698]
[1747503920032,12.03715912,2477.0,2476.4,0.55]
[1747503920231,4.03779374,2476.6,2476.5,0.7675]
[1747503920435,4.03779374,2476.6,2476.5,1.3175]
[1747503920810,4.03753803,2476.8,2476.5,1.3175]
[1747503921016,4.03747468,2476.8,2476.5,1.3175]
[1747503921218,4.03766902,2476.7,2476.5,1.3175]
[1747503921413,4.03753964,2476.8,2476.5,2.21905]
[1747503922021,4.03779374,2476.6,2476.5,2.21905]
[1747503922337,4.03779374,2476.6,2476.5,1.3175]
[1747503922641,4.03779374,2476.6,2476.5,1.6996048]
[1747503923140,4.03779374,2476.6,2476.5,0.3821048]
[1747503923714,4.03779167,2476.7,2476.5,0.3821048]
[1747503923910,0.7972,2477.1,2476.5,0.3821048]
[1747503924110,4.03681575,2477.2,2476.7,0.55]
[1747503924446,4.03688767,2477.2,2477.0,0.7675]
[1747503924659,4.03697872,2477.1,2477.0,1.3175]
[1747503925147,8.4932,2477.5,2476.8,8.4665]
[1747503925306,4.03730258,2477.0,2476.8,8.4665]
[1747503925509,8.4932,2477.5,2476.8,8.4665]
[1747503925959,12.52953605,2477.5,2476.9,0.3821048]
[1747503926251,4.0371417,2477.0,2476.9,0.3821048]
[1747503927851,6.78642136,2477.0,2476.9,0.3821048]
[1747503928565,4.03730469,2476.9,2476.8,7.699]
[1747503929066,4.03779374,2476.6,2476.5,17.437]
[1747503929272,4.03779374,2476.6,2476.5,25.136]
[1747503929429,4.03779374,2476.6,2476.5,25.5185703]
[1747503931946,4.03779374,2476.6,2476.5,17.8195703]
[1747503932274,4.03779374,2476.6,2476.5,0.3825703]
[1747503933159,4.03779374,2476.6,2476.4,7.699]
[1747503933160,4.03795679,2476.5,2476.4,7.699]
[1747503934579,4.03795679,2476.5,2476.4,8.08197355]
[1747503936434,4.0376789,2476.7,2476.4,8.89017091]
[1747503936435,4.03773364,2476.7,2476.4,8.89017091]
[1747503936634,4.03773364,2476.7,2476.5,0.8278]
[1747503937272,4.03682266,2477.2,2476.6,0.55]
[1747503937473,4.03760735,2476.8,2476.6,0.55]
[1747503937643,11.73182266,2477.2,2476.6,0.93297355]
[1747503937644,4.03763071,2476.7,2476.6,0.93297355]
[1747503938174,4.03763071,2476.7,2476.6,0.38297355]
[1747503938340,6.80961037,2476.7,2476.6,0.38297355]
[1747503939536,6.80961037,2476.7,2476.3,7.695]
[1747503939537,4.03795679,2476.5,2476.4,0.38297355]
[1747503941252,4.03811985,2476.4,2476.3,7.695]
[1747503942672,4.03779374,2476.6,2476.0,0.55]
[1747503942875,4.038446,2476.2,2476.1,7.695]
[1747503944093,4.038446,2476.2,2476.1,8.07879793]
[1747503944703,11.733446,2476.2,2476.1,8.07879793]
[1747503946282,4.038446,2476.2,2476.1,8.07879793]
[1747503948662,4.03836507,2476.3,2476.1,8.86409793]
[1747503949089,4.03836507,2476.3,2476.2,0.38379793]
[1747503951295,4.0381793,2476.4,2476.2,0.38379793]
[1747503951882,4.03828292,2476.3,2476.1,8.4803]
[1747503952879,4.038446,2476.2,2476.1,8.4803]
[1747503953507,4.038446,2476.2,2476.1,8.86381455]
[1747503954220,4.03838015,2476.3,2476.1,8.86381455]
[1747503955327,4.03838015,2476.3,2476.2,0.38351455]
[1747503960300,14.81635981,2476.3,2476.2,0.38351455]
[1747503961825,4.03877221,2476.0,2475.9,0.47364524]
[1747503962025,11.73177221,2476.0,2475.9,0.47364524]
[1747503962433,8.8259,2476.3,2475.9,0.47364524]
[1747503962635,11.73154078,2476.2,2475.9,0.47364524]
[1747503962834,4.03877221,2476.0,2475.9,0.47364524]
[1747503963403,4.03877221,2476.0,2475.8,0.38351455]
[1747503964604,4.0388169,2476.0,2475.7,0.38351455]
[1747503964809,4.03909847,2475.8,2475.7,0.93351455]
[1747503966245,4.03909847,2475.8,2475.7,0.38351455]
[1747503967246,4.03942478,2475.6,2475.5,0.47364524]
[1747503967564,11.73342478,2475.6,2475.5,0.47364524]
[1747503969431,4.03962274,2475.5,2475.2,0.38395571]
[1747503969622,4.03991435,2475.3,2475.2,0.38395571]
[1747503970859,4.03977344,2475.4,2475.2,0.38395571]
[1747503971032,4.03991435,2475.3,2475.2,0.38395571]
[1747503972158,4.03983272,2475.4,2475.2,0.38395571]
[1747503972360,4.03991435,2475.3,2475.2,0.38395571]
[1747503972652,4.03983272,2475.4,2475.1,25.134]
[1747503972653,4.03975896,2475.4,2475.1,25.134]
[1747503972834,4.03995813,2475.3,2475.1,25.134]
[1747503973026,4.04007756,2475.2,2475.1,25.134]
[1747503973857,4.04007756,2475.2,2475.1,7.694]
[1747503975443,4.03997917,2475.3,2475.1,7.694]
[1747503975645,7.694,2475.4,2475.1,7.694]
[1747503975844,4.03991936,2475.3,2475.1,7.694]
[1747503976177,11.73377285,2475.4,2475.1,7.694]
[1747503976640,11.73377285,2475.4,2475.2,0.8222]
[1747503976840,4.03991435,2475.3,2475.2,0.8222]
[1747503977140,4.04007756,2475.2,2475.1,7.694]
[1747503978375,11.73342478,2475.6,2475.1,8.54562]
[1747503978674,4.03999656,2475.3,2475.1,7.694]
[1747503979063,4.03984672,2475.4,2475.1,7.694]
[1747503979235,4.03996249,2475.3,2475.1,7.694]
[1747503981874,4.04007756,2475.2,2475.1,8.244]
[1747503984282,4.04007756,2475.2,2475.1,8.62743117]
[1747503984647,4.03999694,2475.3,2475.1,8.62743117]
[1747503984980,4.03971043,2475.5,2475.1,9.57239429]
[1747503985185,4.0399035,2475.4,2475.1,9.57239429]
[1747503986288,0.8297,2475.2,2474.9,0.47364524]
[1747503986586,4.04040404,2475.0,2474.9,0.47364524]
[1747503987183,24.47026336,2475.0,2474.9,0.47364524]
[1747503987346,30.2111837,2475.0,2474.9,0.47364524]
[1747503989196,22.5151837,2475.0,2474.9,0.47364524]
[1747503989492,4.04142482,2474.4,2474.2,0.55]
[1747503990061,4.0415471,2474.3,2474.2,0.55]
[1747503990560,4.0415471,2474.3,2474.2,0.9337409]
[1747503990773,4.0414412,2474.4,2474.2,0.9337409]
[1747503991168,4.0409908,2474.7,2474.2,1.87339499]
[1747503991373,4.04126828,2474.5,2474.2,1.87339499]
[1747503991897,4.04123254,2474.5,2474.2,1.87339499]
[1747503992597,4.04110711,2474.6,2474.2,1.48965409]
[1747503992897,4.04122516,2474.5,2474.2,0.55]
[1747503995001,4.04112212,2474.6,2474.2,0.55]
[1747503995178,2.78177966,2475.0,2474.0,11.73796379]
[1747503995179,4.04068787,2474.9,2474.5,0.55]
[1747503995577,9.33423437,2475.2,2474.6,4.04103037]
[1747503995578,4.04043559,2475.0,2474.6,4.04103037]
[1747503995904,11.42229133,2475.2,2474.9,0.55]
[1747503995905,10.62970483,2475.2,2474.9,0.55]
[1747503996198,6.58955471,2475.2,2474.8,4.59065087]
[1747503996497,10.62966347,2475.2,2474.8,0.55]
[1747503996666,10.62966347,2475.2,2474.9,0.38354807]
[1747503996867,10.62966347,2475.2,2475.0,7.695]
[1747503997185,10.62974447,2475.2,2475.0,7.695]
[1747503997594,6.58955471,2475.2,2475.0,7.695]
[1747503997904,10.62967055,2475.2,2475.0,7.695]
[1747503998399,4.04024079,2475.1,2475.0,7.695]
[1747503999484,4.04056547,2475.0,2474.9,8.244]
[1747503999686,4.04032276,2475.1,2474.9,8.244]
[1747504000088,4.04040404,2475.0,2474.8,7.694]
[1747504000286,4.0406564,2474.9,2474.8,7.694]
[1747504000599,4.04049201,2475.0,2474.8,7.694]
[1747504001101,4.04056729,2474.9,2474.8,8.07808139]
[1747504003395,4.61121067,2474.9,2474.8,0.38408139]
[1747504003578,4.04056729,2474.9,2474.8,0.38408139]
[1747504005303,4.04089384,2474.7,2474.6,0.55]
[1747504006976,6.58955471,2475.2,2474.7,0.8085]
[1747504007168,18.32275044,2475.2,2474.7,4.84929204]
[1747504007504,4.04024773,2475.1,2474.8,0.55]
[1747504009303,4.04043795,2475.0,2474.8,0.55]
[1747504013905,4.04024773,2475.1,2474.8,0.55]
[1747504013906,4.0403247,2475.1,2474.8,0.55]
[1747504014117,10.62964752,2475.2,2474.8,4.59063211]
[1747504014908,6.58955471,2475.2,2474.8,4.59063211]
[1747504015105,6.58955471,2475.2,2474.8,5.53464064]
[1747504015311,10.62963523,2475.2,2474.8,5.53464064]
[1747504015680,10.62963523,2475.2,2475.0,0.55]
[1747504015879,4.04008052,2475.2,2475.0,8.244]
[1747504016075,4.03960686,2475.5,2475.0,8.9991]
[1747504016280,11.73169613,2475.5,2475.0,14.78587193]
[1747504016497,11.73169613,2475.5,2475.0,14.23587193]
[1747504016700,4.03928733,2475.7,2475.2,4.03997183]
[1747504016900,11.73126162,2475.7,2475.2,0.55]
[1747504017114,4.03960298,2475.5,2475.2,0.55]
[1747504018011,4.03960298,2475.5,2475.3,0.3844472]
[1747504018209,4.03975115,2475.4,2475.3,0.3844472]
[1747504018616,4.80405115,2475.4,2475.3,0.3844472]
[1747504018779,6.75613081,2475.4,2475.3,0.3844472]
[1747504019180,4.04040404,2475.0,2474.9,8.71764524]
[1747504021106,4.04040404,2475.0,2474.9,8.62782506]
[1747504021717,11.73215344,2475.2,2474.9,8.62782506]
[1747504022217,5.99163392,2475.6,2475.0,1.3821]
[1747504022218,11.73199726,2475.3,2475.0,1.3821]
[1747504022419,11.73199726,2475.3,2475.0,1.76592506]
[1747504023526,11.73199726,2475.3,2475.1,0.38382506]
[1747504023726,4.03963462,2475.5,2475.2,0.55]
[1747504024022,4.03991435,2475.3,2475.2,0.55]
[1747504025334,4.03991435,2475.3,2475.2,0.93382506]
[1747504025925,4.03991435,2475.3,2475.2,0.38382506]
[1747504026723,4.04007756,2475.2,2475.1,0.38382506]
[1747504031061,5.99215722,2475.2,2475.1,0.38382506]
[1747504031365,6.75645722,2475.2,2475.1,0.38382506]
[1747504031746,14.75645722,2475.2,2475.1,0.38382506]
[1747504032153,4.04089384,2474.7,2474.6,0.47364524]
[1747504033770,4.04024079,2475.1,2474.6,1.25594524]
[1747504033926,4.0406438,2474.9,2474.6,1.89130099]
[1747504034129,4.04046619,2475.0,2474.6,1.89130099]
[1747504034933,4.04046619,2475.0,2474.7,0.38436883]
[1747504035133,4.04024079,2475.1,2474.7,0.93436883]
[1747504035374,7.69,2475.3,2474.8,1.18930724]
[1747504035664,4.04018229,2475.2,2474.9,0.7823]
[1747504036052,4.04018229,2475.2,2475.0,0.38436883]
[1747504036625,4.04000474,2475.3,2475.1,0.55]
[1747504036829,4.04024079,2475.1,2475.0,0.38436883]
[1747504037029,5.99232045,2475.1,2475.0,0.38436883]
[1747504037459,13.68232045,2475.1,2475.0,0.38436883]
[1747504037648,4.04081079,2474.8,2474.5,0.55]
[1747504038681,4.04081079,2474.8,2474.5,8.241]
[1747504038864,4.04081079,2474.8,2474.6,1.25583112]
[1747504039971,4.0406224,2474.9,2474.6,1.25583112]
[1747504040275,4.04071295,2474.9,2474.7,0.3843666]
[1747504040472,4.04073056,2474.8,2474.7,0.3843666]
[1747504042393,4.04065467,2474.9,2474.7,1.1494666]
[1747504042583,4.04030763,2475.1,2474.7,2.17565971]
[1747504042742,11.73030763,2475.1,2474.7,2.17565971]
[1747504043142,11.73030763,2475.1,2474.8,0.3843666]
[1747504043446,4.04042343,2475.0,2474.8,0.3843666]
[1747504044267,4.04042343,2475.0,2474.9,0.3843666]
[1747504044647,4.04032579,2475.1,2474.9,0.3843666]
[1747504044852,4.0402456,2475.1,2474.9,0.3843666]
[1747504045971,4.0402456,2475.1,2475.0,0.3843666]
[1747504052887,4.03979932,2475.4,2475.1,0.55]
[1747504053088,11.72865928,2475.5,2475.1,1.3565]
[1747504053292,4.03991749,2475.3,2475.1,1.3565]
[1747504053593,4.03991749,2475.3,2475.1,2.29968666]
[1747504054160,4.03991749,2475.3,2475.2,0.3843666]
[1747504057973,4.03983678,2475.4,2475.3,0.833]
[1747504058564,4.03983678,2475.4,2475.3,1.383]
[1747504058785,4.03983678,2475.4,2475.3,1.7673666]
[1747504059293,4.03983678,2475.4,2475.3,0.9343666]
[1747504061098,10.73917966,2475.9,2475.3,0.9343666]
[1747504061268,4.0395781,2475.6,2475.3,0.9343666]
[1747504061599,4.0395781,2475.6,2475.5,0.7505]
[1747504061895,4.03919406,2475.8,2475.6,0.55]
[1747504062077,4.03896673,2475.9,2475.6,0.55]
[1747504062397,4.03926162,2475.7,2475.6,0.55]
[1747504063766,4.03926162,2475.7,2475.6,0.9337356]
[1747504066128,6.41945687,2476.0,2475.6,1.87085916]
[1747504066267,4.03924149,2475.8,2475.6,0.9337356]
[1747504067174,4.03926162,2475.7,2475.6,0.9337356]
[1747504067378,4.03926162,2475.7,2475.6,0.55]
[1747504068092,4.03958796,2475.5,2475.4,0.55]
[1747504068413,4.03975115,2475.4,2475.3,0.47364524]
[1747504070014,4.03959122,2475.5,2475.3,0.38355634]
[1747504070316,4.03975115,2475.4,2475.3,0.38355634]
[1747504078397,11.72346859,2475.6,2475.3,0.38355634]
[1747504078601,4.0396842,2475.5,2475.3,1.18335634]
[1747504079599,4.0396842,2475.5,2475.4,0.38355634]
[1747504080024,11.72346859,2475.6,2475.4,0.38355634]
[1747504080025,4.03946859,2475.6,2475.4,0.38355634]
[1747504080732,4.03957801,2475.6,2475.4,0.38355634]
[1747504081042,4.03957801,2475.6,2475.5,0.38355634]
[1747504083843,4.79867801,2475.6,2475.5,0.38355634]
[1747504084544,4.03975115,2475.4,2475.3,0.38355634]
[1747504087416,4.03962489,2475.5,2475.3,0.38355634]
[1747504087751,4.03959226,2475.5,2475.3,1.18335634]
[1747504088415,4.03959226,2475.5,2475.4,0.38355634]
[1747504091254,4.81239226,2475.5,2475.4,0.38355634]
[1747504097432,4.03991435,2475.3,2475.2,0.38355634]
[1747504097641,11.72091435,2475.3,2475.2,0.38355634]
[1747504098376,20.50581435,2475.3,2475.2,0.38355634]
[1747504098943,4.86034079,2475.1,2475.0,0.38355634]
[1747504099278,6.81242045,2475.1,2475.0,0.38355634]
[1747504099948,14.81242045,2475.1,2475.0,0.38355634]
[1747504100279,14.81242045,2475.1,2474.6,0.47364524]
[1747504100280,4.86099384,2474.7,2474.6,0.47364524]
[1747504100480,12.54099384,2474.7,2474.6,0.47364524]
[1747504101289,4.86099384,2474.7,2474.6,0.47364524]
[1747504101469,12.54199384,2474.7,2474.6,0.47364524]
[1747504102050,4.04105714,2474.6,2474.4,0.63152699]
[1747504102250,4.04138376,2474.4,2474.3,0.38355634]
[1747504102482,8.0,2475.0,2474.3,3.01112197]
[1747504102686,11.72197807,2474.7,2474.4,0.55]
[1747504103047,4.04089384,2474.7,2474.4,0.55]
[1747504103252,4.04079796,2474.8,2474.5,0.7641]
[1747504103484,6.75351241,2475.1,2474.5,0.7641]
[1747504103485,4.04066175,2474.9,2474.5,0.7641]
[1747504103787,4.0407437,2474.8,2474.6,0.55]
[1747504104088,4.04054181,2475.0,2474.7,7.683]
[1747504104286,4.04054181,2475.0,2474.8,0.70847174]
[1747504104945,4.04025914,2475.1,2474.9,0.55]
[1747504105157,4.04040404,2475.0,2474.9,1.3492]
[1747504106060,0.797,2476.0,2474.9,1.3492]
[1747504106289,4.03958031,2475.6,2475.3,0.55]
[1747504106459,4.03975115,2475.4,2475.3,8.234]
[1747504107478,11.71975115,2475.4,2474.9,8.4822]
[1747504107710,4.04048597,2475.0,2474.9,1.3492]
[1747504107910,4.04048597,2475.0,2474.9,0.55]
[1747504108223,4.04056729,2474.9,2474.8,0.47364524]
[1747504108928,14.46964695,2474.9,2474.8,0.47364524]
[1747504109420,12.51756729,2474.9,2474.8,0.47364524]
[1747504109788,12.51856729,2474.9,2474.8,0.47364524]
[1747504110183,4.04118765,2474.6,2474.4,0.7992]
[1747504111103,7.681,2474.8,2474.4,0.7992]
[1747504111104,0.797,2474.9,2474.4,0.7992]
[1747504111414,4.04100617,2474.7,2474.4,8.4832]
[1747504111619,4.04100617,2474.7,2474.5,0.55]
[1747504111912,4.04105714,2474.6,2474.5,0.55]
[1747504113286,4.04105714,2474.6,2474.4,9.33152]
[1747504113490,4.04105714,2474.6,2474.0,0.47364524]
[1747504113491,4.04168945,2474.3,2474.0,0.47364524]
[1747504113687,4.04171045,2474.2,2474.1,7.684]
[1747504113925,4.04187381,2474.1,2474.0,0.47364524]
[1747504114222,4.04187381,2474.1,2474.0,8.15764524]
[1747504114426,4.04187381,2474.1,2474.0,8.70764524]
[1747504114725,4.04187381,2474.1,2474.0,9.09178342]
[1747504116193,4.04178954,2474.2,2474.0,8.61813818]
[1747504117726,4.04178954,2474.2,2474.1,0.38413818]
[1747504118226,4.83928954,2474.2,2474.1,0.38413818]
[1747504119395,4.04294028,2473.5,2473.4,8.231]
[1747504119793,4.0426825,2473.7,2473.4,8.231]
[1747504120137,4.04270523,2473.6,2473.4,8.231]
[1747504120439,4.04252738,2473.7,2473.4,8.231]
[1747504120633,4.04278729,2473.6,2473.4,8.231]
[1747504121241,4.04285425,2473.5,2473.4,8.231]
[1747504122231,4.04285425,2473.5,2473.4,8.06498208]
[1747504123709,4.04285425,2473.5,2473.4,7.681]
[1747504126119,4.83989089,2473.8,2473.4,7.681]
[1747504126120,4.04265594,2473.7,2473.4,7.681]
[1747504126319,4.04276577,2473.6,2473.4,7.681]
[1747504126532,4.04285425,2473.5,2473.4,7.681]
[1747504130424,4.04276577,2473.6,2473.1,0.55]
[1747504130727,4.04276577,2473.6,2473.2,7.683]
[1747504130728,4.04318117,2473.3,2473.2,7.683]
[1747504131762,4.04334465,2473.2,2473.1,0.55]
[1747504132220,4.04348485,2473.2,2473.0,25.135]
[1747504132634,4.0431941,2473.3,2473.1,0.55]
[1747504133864,7.683,2473.4,2473.1,0.55]
[1747504134174,4.04324793,2473.3,2473.1,0.55]
[1747504138383,11.72595595,2473.5,2473.1,0.55]
[1747504139284,4.04304886,2473.4,2473.1,0.55]
[1747504139885,4.04295301,2473.5,2473.1,0.55]
[1747504140045,11.72595301,2473.5,2473.1,0.55]
[1747504140242,6.0036117,2473.8,2473.1,4.59342604]
[1747504140243,4.04262253,2473.7,2473.1,4.59342604]
[1747504140443,8.4616,2473.8,2473.3,0.55]
[1747504140665,12.50403334,2473.8,2473.3,0.55]
[1747504140882,11.72543334,2473.8,2473.3,0.55]
[1747504141053,11.72655184,2473.7,2473.3,0.55]
[1747504141262,7.684,2473.7,2473.3,0.55]
[1747504141456,4.82070541,2474.0,2473.5,0.55]
[1747504141661,7.684,2473.9,2473.6,0.8257]
[1747504141896,4.04237237,2473.8,2473.6,0.8257]
[1747504142290,4.04237237,2473.8,2473.5,7.684]
[1747504142291,4.04252738,2473.7,2473.5,7.684]
[1747504143870,4.04252738,2473.7,2473.6,0.38492682]
[1747504144395,4.80132738,2473.7,2473.6,0.38492682]
[1747504145465,4.0430177,2473.4,2473.3,0.55]
[1747504145888,4.04294535,2473.5,2473.3,0.55]
[1747504146186,4.04318117,2473.3,2473.2,0.47364524]
[1747504146888,4.04318117,2473.3,2473.2,0.38567695]
[1747504150797,7.683,2473.4,2473.2,0.38567695]
[1747504150967,11.72609118,2473.4,2473.2,0.38567695]
[1747504151506,4.0431182,2473.4,2473.2,0.38567695]
[1747504151665,4.0431182,2473.4,2473.3,0.38567695]
[1747504153382,4.8683182,2473.4,2473.3,0.38567695]
[1747504155878,4.8683182,2473.4,2473.0,8.15764524]
[1747504155879,4.04334465,2473.2,2473.1,0.38567695]
[1747504156515,4.04285425,2473.5,2473.1,0.38567695]
[1747504156721,4.04319189,2473.3,2473.1,0.38567695]
[1747504157289,4.04319189,2473.3,2473.1,1.21117695]
[1747504158008,4.04319189,2473.3,2473.2,0.38567695]
[1747504163822,4.04292618,2473.5,2473.2,0.38567695]
[1747504164028,11.72592618,2473.5,2473.2,1.16037695]
[1747504164319,4.04281306,2473.6,2473.3,0.55]
[1747504164488,4.04285426,2473.5,2473.3,0.55]
[1747504165016,4.04285426,2473.5,2473.4,0.38567695]
[1747504175759,8.0,2473.9,2473.4,1.18987695]
[1747504175944,4.04285425,2473.5,2473.4,1.3542]
[1747504177560,4.04285425,2473.5,2473.4,1.74055694]
[1747504178260,4.04285425,2473.5,2473.4,0.93635694]
[1747504180287,4.04276579,2473.6,2473.4,0.93635694]
[1747504180427,4.04260982,2473.7,2473.5,1.3384]
[1747504182166,4.04260982,2473.7,2473.6,0.38635694]
[1747504182364,6.81239611,2474.2,2473.6,0.38635694]
[1747504182562,4.04236632,2473.8,2473.6,0.38635694]
[1747504182780,11.72110011,2474.0,2473.6,0.38635694]
[1747504182781,4.04225191,2473.9,2473.6,8.06635694]
[1747504184087,4.04225191,2473.9,2473.7,0.38635694]
[1747504185097,4.04225191,2473.9,2473.8,0.38635694]
[1747504193805,4.83195191,2473.9,2473.8,0.38635694]
[1747504194209,4.04252738,2473.7,2473.6,7.68]
[1747504195519,4.04240275,2473.8,2473.6,7.68]
[1747504195721,6.00889611,2474.2,2473.7,1.3429]
[1747504196023,4.04188632,2474.1,2473.8,0.55]
[1747504197015,4.04188632,2474.1,2473.9,0.38507636]
[1747504197214,4.04203718,2474.0,2473.9,0.38507636]
[1747504197385,4.04195548,2474.1,2473.9,0.38507636]
[1747504198020,4.04195548,2474.1,2474.0,0.93507636]
[1747504201138,4.61259886,2474.1,2474.0,0.38507636]
[1747504201329,4.04195548,2474.1,2474.0,0.38507636]
[1747504203981,6.00889611,2474.2,2474.0,0.38507636]
[1747504204283,4.04112884,2474.6,2474.2,0.55]
[1747504204440,11.7148599,2474.8,2474.2,0.55]
[1747504204441,4.04122629,2474.5,2474.2,0.55]
[1747504205274,4.04122629,2474.5,2474.4,0.55]
[1747504205576,4.04138376,2474.4,2474.3,0.38507636]
[1747504207336,6.75772308,2474.4,2474.3,0.38507636]
[1747504209363,4.04187381,2474.1,2474.0,0.47364524]
[1747504211163,4.04213722,2474.0,2473.9,0.38481954]
[1747504212166,4.04187381,2474.1,2474.0,0.8018]
[1747504212167,4.0419543,2474.1,2474.0,0.8018]
[1747504212370,8.7956,2474.6,2474.0,0.8018]
[1747504212671,14.24355868,2474.9,2474.3,0.55]
[1747504212873,4.04107662,2474.6,2474.3,0.55]
[1747504213336,4.04122917,2474.5,2474.3,0.55]
[1747504214765,4.04122917,2474.5,2474.4,0.38481954]
[1747504218988,4.04113551,2474.6,2474.4,0.38481954]
[1747504219284,7.671,2474.8,2474.5,0.55]
[1747504219484,4.04104554,2474.7,2474.5,0.55]
[1747504220276,4.04105714,2474.6,2474.5,0.55]
[1747504220436,4.04099089,2474.7,2474.5,0.55]
[1747504220643,4.04099089,2474.7,2474.5,1.3134]
[1747504220951,0.8115,2475.0,2474.5,1.3134]
[1747504221152,4.04077327,2474.8,2474.5,8.9854]
[1747504221356,4.04090178,2474.7,2474.5,8.9854]
[1747504222487,4.04090178,2474.7,2474.6,0.93390835]
[1747504223809,4.04090178,2474.7,2474.6,0.55]
[1747504226601,4.04105714,2474.6,2474.5,8.222]
[1747504227096,4.04105714,2474.6,2474.5,7.672]
[1747504228802,4.04105714,2474.6,2474.5,8.05607448]
[1747504229307,4.04105714,2474.6,2474.5,8.05507448]
[1747504236426,1.96123932,2475.3,2474.6,0.55]
[1747504236622,4.04067154,2474.9,2474.6,0.55]
[1747504238034,4.04082423,2474.8,2474.6,0.55]
[1747504238330,4.04085183,2474.8,2474.6,0.55]
[1747504238621,4.04085183,2474.8,2474.7,0.38411815]
[1747504246935,4.04017323,2475.2,2474.9,0.7606]
[1747504247109,4.04007756,2475.2,2474.9,0.7606]
[1747504247312,4.03968575,2475.5,2475.1,0.55]
[1747504247625,4.03968575,2475.5,2475.2,0.7606]
[1747504247626,4.03977054,2475.4,2475.2,0.7606]
[1747504247802,11.70427533,2475.7,2475.2,0.7606]
[1747504248003,4.03971231,2475.5,2475.3,0.55]
[1747504250426,4.03975115,2475.4,2475.3,0.55]
[1747504251223,4.03975115,2475.4,2475.3,0.93372381]
[1747504253874,4.03975115,2475.4,2475.3,0.38372381]
[1747504254527,4.04034557,2475.1,2474.9,7.665]
[1747504255911,4.04034557,2475.1,2475.0,0.38336366]
[1747504256748,4.03997951,2475.3,2475.0,0.38336366]
[1747504256952,4.03984678,2475.4,2475.0,0.38336366]
[1747504257357,4.03984678,2475.4,2475.1,0.38336366]
[1747504258253,4.03984678,2475.4,2475.2,0.38336366]
[1747504258755,4.0397619,2475.4,2475.2,0.38336366]
[1747504259856,0.8128,2475.7,2475.1,0.55]
[1747504260033,4.03960685,2475.5,2475.1,1.45223]
[1747504261851,4.03976894,2475.4,2475.1,1.45223]
[1747504262959,4.04031581,2475.1,2474.9,0.55]
[1747504263257,4.04031581,2475.1,2475.0,8.214]
[1747504263424,4.04031581,2475.1,2475.0,7.664]
[1747504264345,4.04031581,2475.1,2475.0,8.04740482]
[1747504264969,4.04019903,2475.2,2475.0,8.04740482]
[1747504265371,4.04024079,2475.1,2475.0,8.04740482]
[1747504265546,4.04024079,2475.1,2475.0,7.664]
[1747504266558,4.03998148,2475.3,2475.1,0.55]
[1747504266767,4.04007756,2475.2,2475.1,0.55]
[1747504268276,4.04007756,2475.2,2475.1,0.93385945]
[1747504271971,4.03997804,2475.3,2475.1,0.93385945]
[1747504272964,4.03997804,2475.3,2475.2,0.38385945]
[1747504273377,4.03955964,2475.6,2475.3,0.55]
[1747504274043,4.03955964,2475.6,2475.4,0.38385945]
[1747504274650,4.03958796,2475.5,2475.4,0.93385945]
[1747504275078,4.03958796,2475.5,2475.4,0.38385945]
[1747504275751,6.00082728,2475.5,2475.4,0.38385945]
[1747504275951,4.03958796,2475.5,2475.4,0.38385945]
[1747504276551,4.04007756,2475.2,2475.1,0.38385945]
[1747504285852,4.86667756,2475.2,2475.1,0.38385945]
[1747504286456,4.86700404,2475.0,2474.9,0.47364524]
[1747504286768,6.82824336,2475.0,2474.9,0.47364524]
[1747504287096,14.82824336,2475.0,2474.9,0.47364524]
[1747504288195,4.04171045,2474.2,2474.1,0.38385945]
[1747504288487,4.04171045,2474.2,2474.1,0.93385945]
[1747504292294,4.04171045,2474.2,2474.1,0.55]
[1747504295621,1.96123932,2475.1,2474.2,0.55]
[1747504295765,4.04110752,2474.6,2474.4,0.55]
[1747504295970,4.04110752,2474.6,2474.4,8.21]
[1747504296170,8.0,2475.1,2474.4,8.21]
[1747504296171,4.04074015,2474.8,2474.6,0.55]
[1747504296370,7.656,2475.1,2474.6,0.55]